{"text_format":"3","workbook":"xlsx","n_sheets":4,"sheets":["Зведення місячного бюджету","Доходи","Витрати на персонал","Операційні витрати"],"not_rendered":{"charts":1,"defined_names":14},"read":"whole","date_system":"1900"}

{"sheet":"Зведення місячного бюджету","index":0,"n_rows":17,"n_cols":5,"rows_kept":17,"merged":[[0,1,0,3],[1,1,1,3],[1,4,1,5]]}
[null,"НАЗВА УСТАНОВИ"]
[null,"МІСЯЧНИЙ БЮДЖЕТ",null,null,"Дата"]
[]
[null,"ЗАГАЛЬНИЙ БЮДЖЕТ","ОРІЄНТОВНО","ФАКТИЧНО","РІЗНИЦЯ"]
[null,"Доходи",{"$f":"Доходи[[#Totals],[ОРІЄНТОВНО]]","v":{"v":63300,"d":"63,300.00"}},{"$f":"Доходи[[#Totals],[ФАКТИЧНО]]","v":{"v":57450,"d":"57,450.00"}},{"$f":"Підсумки[[#This Row],[ФАКТИЧНО]]-Підсумки[[#This Row],[ОРІЄНТОВНО]]","v":{"v":-5850,"d":"-5,850.00 "}}]
[null,"Витрати",{"$f":"ОпераційніВитрати[[#Totals],[ОРІЄНТОВНО]]+ВитратиНаПерсонал[[#Totals],[ОРІЄНТОВНО]]","v":{"v":54500,"d":"54,500.00"}},{"$f":"ОпераційніВитрати[[#Totals],[ФАКТИЧНО]]+ВитратиНаПерсонал[[#Totals],[ФАКТИЧНО]]","v":{"v":49630,"d":"49,630.00"}},{"$f":"Підсумки[[#This Row],[ОРІЄНТОВНО]]-Підсумки[[#This Row],[ФАКТИЧНО]]","v":{"v":4870,"d":"4,870.00"}}]
[null,"Баланс (різниця доходів і витрат)",{"$f":"C5-C6","v":{"v":8800,"d":"8,800.00"}},{"$f":"D5-D6","v":{"v":7820,"d":"7,820.00"}},{"$f":"Підсумки[[#Totals],[ФАКТИЧНО]]-Підсумки[[#Totals],[ОРІЄНТОВНО]]","v":{"v":-980,"d":"-980.00 "}}]
[]
[]
[null,"П’ЯТЬ НАЙБІЛЬШИХ СТАТЕЙ ОПЕРАЦІЙНИХ ВИТРАТ"]
[null,"ВИТРАТИ","СУМА","Відсоток витрат","ЗНИЖКА 15%"]
[null,{"$f":"INDEX(ОпераційніВитрати[],MATCH(ПятьНайбільшихСтатейВитрат[[#This Row],[СУМА]],ОпераційніВитрати[П’ЯТЬ НАЙБІЛЬШИХ СУМ],0),1)","v":"Обслуговування та ремонт"},{"$f":"LARGE(ОпераційніВитрати[П’ЯТЬ НАЙБІЛЬШИХ СУМ],1)","v":{"v":4600.000014,"d":"4,600.00"}},{"$f":"ПятьНайбільшихСтатейВитрат[[#This Row],[СУМА]]/$D$6","v":{"v":0.09268587576062866,"d":"9.3%"}},{"$f":"ПятьНайбільшихСтатейВитрат[[#This Row],[СУМА]]*0.15","v":{"v":690.0000021,"d":"690.00"}}]
[null,{"$f":"INDEX(ОпераційніВитрати[],MATCH(ПятьНайбільшихСтатейВитрат[[#This Row],[СУМА]],ОпераційніВитрати[П’ЯТЬ НАЙБІЛЬШИХ СУМ],0),1)","v":"Матеріали"},{"$f":"LARGE(ОпераційніВитрати[П’ЯТЬ НАЙБІЛЬШИХ СУМ],2)","v":{"v":4500.00002,"d":"4,500.00"}},{"$f":"ПятьНайбільшихСтатейВитрат[[#This Row],[СУМА]]/$D$6","v":{"v":0.09067096554503326,"d":"9.1%"}},{"$f":"ПятьНайбільшихСтатейВитрат[[#This Row],[СУМА]]*0.15","v":{"v":675.000003,"d":"675.00"}}]
[null,{"$f":"INDEX(ОпераційніВитрати[],MATCH(ПятьНайбільшихСтатейВитрат[[#This Row],[СУМА]],ОпераційніВитрати[П’ЯТЬ НАЙБІЛЬШИХ СУМ],0),1)","v":"Оренда або іпотека"},{"$f":"LARGE(ОпераційніВитрати[П’ЯТЬ НАЙБІЛЬШИХ СУМ],3)","v":{"v":4500.000017,"d":"4,500.00"}},{"$f":"ПятьНайбільшихСтатейВитрат[[#This Row],[СУМА]]/$D$6","v":{"v":0.09067096548458595,"d":"9.1%"}},{"$f":"ПятьНайбільшихСтатейВитрат[[#This Row],[СУМА]]*0.15","v":{"v":675.00000255,"d":"675.00"}}]
[null,{"$f":"INDEX(ОпераційніВитрати[],MATCH(ПятьНайбільшихСтатейВитрат[[#This Row],[СУМА]],ОпераційніВитрати[П’ЯТЬ НАЙБІЛЬШИХ СУМ],0),1)","v":"Податки"},{"$f":"LARGE(ОпераційніВитрати[П’ЯТЬ НАЙБІЛЬШИХ СУМ],4)","v":{"v":3200.000021,"d":"3,200.00"}},{"$f":"ПятьНайбільшихСтатейВитрат[[#This Row],[СУМА]]/$D$6","v":{"v":0.06447713119081201,"d":"6.4%"}},{"$f":"ПятьНайбільшихСтатейВитрат[[#This Row],[СУМА]]*0.15","v":{"v":480.00000314999994,"d":"480.00"}}]
[null,{"$f":"INDEX(ОпераційніВитрати[],MATCH(ПятьНайбільшихСтатейВитрат[[#This Row],[СУМА]],ОпераційніВитрати[П’ЯТЬ НАЙБІЛЬШИХ СУМ],0),1)","v":"Реклама"},{"$f":"LARGE(ОпераційніВитрати[П’ЯТЬ НАЙБІЛЬШИХ СУМ],5)","v":{"v":2500.000005,"d":"2,500.00"}},{"$f":"ПятьНайбільшихСтатейВитрат[[#This Row],[СУМА]]/$D$6","v":{"v":0.05037275851299617,"d":"5.0%"}},{"$f":"ПятьНайбільшихСтатейВитрат[[#This Row],[СУМА]]*0.15","v":{"v":375.00000074999997,"d":"375.00"}}]
[null,"Підсумок",{"$f":"SUBTOTAL(109,ПятьНайбільшихСтатейВитрат[СУМА])","v":{"v":19300.000077000004,"d":"19,300.00"}},{"$f":"SUBTOTAL(109,ПятьНайбільшихСтатейВитрат[Відсоток витрат])","v":{"v":0.388877696494056,"d":"38.9%"}},{"$f":"SUBTOTAL(109,ПятьНайбільшихСтатейВитрат[ЗНИЖКА 15%])","v":{"v":2895.0000115499997,"d":"2,895.00"}}]

{"sheet":"Доходи","index":1,"n_rows":8,"n_cols":6,"rows_kept":8}
[null,{"$f":"НАЗВА_УСТАНОВИ","v":"НАЗВА УСТАНОВИ"}]
[null,{"$f":"БЮДЖЕТ_Заголовок","v":"МІСЯЧНИЙ БЮДЖЕТ"}]
[]
[null,"ДОХОДИ","ОРІЄНТОВНО","ФАКТИЧНО","П’ЯТЬ НАЙБІЛЬШИХ СУМ","РІЗНИЦЯ"]
[null,"Доходи від реалізації",{"v":60000,"d":"60,000.00"},{"v":54000,"d":"54,000.00"},{"$f":"Доходи[[#This Row],[ФАКТИЧНО]]+(10^-6)*ROW(Доходи[[#This Row],[ФАКТИЧНО]])","v":{"v":54000.000005,"d":"54,000.00"}},{"$f":"Доходи[[#This Row],[ФАКТИЧНО]]-Доходи[[#This Row],[ОРІЄНТОВНО]]","v":{"v":-6000,"d":"-6,000.00 "}}]
[null,"Дохід від відсотків",{"v":3000,"d":"3,000.00"},{"v":3000,"d":"3,000.00"},{"$f":"Доходи[[#This Row],[ФАКТИЧНО]]+(10^-6)*ROW(Доходи[[#This Row],[ФАКТИЧНО]])","v":{"v":3000.000006,"d":"3,000.00"}},{"$f":"Доходи[[#This Row],[ФАКТИЧНО]]-Доходи[[#This Row],[ОРІЄНТОВНО]]","v":{"v":0,"d":"0.00"}}]
[null,"Продаж активів (виграш/програш)",{"v":300,"d":"300.00"},{"v":450,"d":"450.00"},{"$f":"Доходи[[#This Row],[ФАКТИЧНО]]+(10^-6)*ROW(Доходи[[#This Row],[ФАКТИЧНО]])","v":{"v":450.000007,"d":"450.00"}},{"$f":"Доходи[[#This Row],[ФАКТИЧНО]]-Доходи[[#This Row],[ОРІЄНТОВНО]]","v":{"v":150,"d":"150.00"}}]
[null,"Сумарний дохід",{"$f":"SUBTOTAL(109,Доходи[ОРІЄНТОВНО])","v":{"v":63300,"d":"63,300.00"}},{"$f":"SUBTOTAL(109,Доходи[ФАКТИЧНО])","v":{"v":57450,"d":"57,450.00"}},null,{"$f":"SUBTOTAL(109,Доходи[РІЗНИЦЯ])","v":{"v":-5850,"d":"-5,850.00 "}}]

{"sheet":"Витрати на персонал","index":2,"n_rows":8,"n_cols":6,"rows_kept":8}
[null,{"$f":"НАЗВА_УСТАНОВИ","v":"НАЗВА УСТАНОВИ"}]
[null,{"$f":"БЮДЖЕТ_Заголовок","v":"МІСЯЧНИЙ БЮДЖЕТ"}]
[]
[null,"ВИТРАТИ НА ПЕРСОНАЛ","ОРІЄНТОВНО","ФАКТИЧНО","П’ЯТЬ НАЙБІЛЬШИХ СУМ","РІЗНИЦЯ"]
[null,"Заробітна плата",{"v":9500,"d":"9,500.00"},{"v":9600,"d":"9,600.00"},{"$f":"ВитратиНаПерсонал[[#This Row],[ФАКТИЧНО]]+(10^-6)*ROW(ВитратиНаПерсонал[[#This Row],[ФАКТИЧНО]])","v":{"v":9600.000005,"d":"9,600.00"}},{"$f":"ВитратиНаПерсонал[[#This Row],[ОРІЄНТОВНО]]-ВитратиНаПерсонал[[#This Row],[ФАКТИЧНО]]","v":{"v":-100,"d":"-100.00 "}}]
[null,"ДОДАТКОВІ ВИПЛАТИ ПРАЦІВНИКАМ",{"v":4000,"d":"4,000.00"},{"v":0,"d":"0.00"},{"$f":"ВитратиНаПерсонал[[#This Row],[ФАКТИЧНО]]+(10^-6)*ROW(ВитратиНаПерсонал[[#This Row],[ФАКТИЧНО]])","v":{"v":6e-06,"d":"0.00"}},{"$f":"ВитратиНаПерсонал[[#This Row],[ОРІЄНТОВНО]]-ВитратиНаПерсонал[[#This Row],[ФАКТИЧНО]]","v":{"v":4000,"d":"4,000.00"}}]
[null,"Комісія",{"v":5000,"d":"5,000.00"},{"v":4500,"d":"4,500.00"},{"$f":"ВитратиНаПерсонал[[#This Row],[ФАКТИЧНО]]+(10^-6)*ROW(ВитратиНаПерсонал[[#This Row],[ФАКТИЧНО]])","v":{"v":4500.000007,"d":"4,500.00"}},{"$f":"ВитратиНаПерсонал[[#This Row],[ОРІЄНТОВНО]]-ВитратиНаПерсонал[[#This Row],[ФАКТИЧНО]]","v":{"v":500,"d":"500.00"}}]
[null,"ЗАГАЛЬНА СУМА ВИТРАТ НА ПЕРСОНАЛ",{"$f":"SUBTOTAL(109,ВитратиНаПерсонал[ОРІЄНТОВНО])","v":{"v":18500,"d":"18,500.00"}},{"$f":"SUBTOTAL(109,ВитратиНаПерсонал[ФАКТИЧНО])","v":{"v":14100,"d":"14,100.00"}},null,{"$f":"SUBTOTAL(109,ВитратиНаПерсонал[РІЗНИЦЯ])","v":{"v":4400,"d":"4,400.00"}}]

{"sheet":"Операційні витрати","index":3,"n_rows":25,"n_cols":6,"rows_kept":25}
[null,{"$f":"НАЗВА_УСТАНОВИ","v":"НАЗВА УСТАНОВИ"}]
[null,{"$f":"БЮДЖЕТ_Заголовок","v":"МІСЯЧНИЙ БЮДЖЕТ"}]
[]
[null,"ОПЕРАЦІЙНІ ВИТРАТИ","ОРІЄНТОВНО","ФАКТИЧНО","П’ЯТЬ НАЙБІЛЬШИХ СУМ","РІЗНИЦЯ"]
[null,"Реклама",{"v":3000,"d":"3,000.00"},{"v":2500,"d":"2,500.00"},{"$f":"ОпераційніВитрати[[#This Row],[ФАКТИЧНО]]+(10^-6)*ROW(ОпераційніВитрати[[#This Row],[ФАКТИЧНО]])","v":{"v":2500.000005,"d":"2,500.00"}},{"$f":"ОпераційніВитрати[[#This Row],[ОРІЄНТОВНО]]-ОпераційніВитрати[[#This Row],[ФАКТИЧНО]]","v":{"v":500,"d":"500.00"}}]
[null,"Безнадійна заборгованість",{"v":2000,"d":"2,000.00"},{"v":2000,"d":"2,000.00"},{"$f":"ОпераційніВитрати[[#This Row],[ФАКТИЧНО]]+(10^-6)*ROW(ОпераційніВитрати[[#This Row],[ФАКТИЧНО]])","v":{"v":2000.000006,"d":"2,000.00"}},{"$f":"ОпераційніВитрати[[#This Row],[ОРІЄНТОВНО]]-ОпераційніВитрати[[#This Row],[ФАКТИЧНО]]","v":{"v":0,"d":"0.00"}}]
[null,"Знижка за оплату готівкою",{"v":1500,"d":"1,500.00"},{"v":2175,"d":"2,175.00"},{"$f":"ОпераційніВитрати[[#This Row],[ФАКТИЧНО]]+(10^-6)*ROW(ОпераційніВитрати[[#This Row],[ФАКТИЧНО]])","v":{"v":2175.000007,"d":"2,175.00"}},{"$f":"ОпераційніВитрати[[#This Row],[ОРІЄНТОВНО]]-ОпераційніВитрати[[#This Row],[ФАКТИЧНО]]","v":{"v":-675,"d":"-675.00 "}}]
[null,"Витрати на доставку",{"v":2000,"d":"2,000.00"},{"v":1500,"d":"1,500.00"},{"$f":"ОпераційніВитрати[[#This Row],[ФАКТИЧНО]]+(10^-6)*ROW(ОпераційніВитрати[[#This Row],[ФАКТИЧНО]])","v":{"v":1500.000008,"d":"1,500.00"}},{"$f":"ОпераційніВитрати[[#This Row],[ОРІЄНТОВНО]]-ОпераційніВитрати[[#This Row],[ФАКТИЧНО]]","v":{"v":500,"d":"500.00"}}]
[null,"Амортизація",{"v":1000,"d":"1,000.00"},{"v":1000,"d":"1,000.00"},{"$f":"ОпераційніВитрати[[#This Row],[ФАКТИЧНО]]+(10^-6)*ROW(ОпераційніВитрати[[#This Row],[ФАКТИЧНО]])","v":{"v":1000.000009,"d":"1,000.00"}},{"$f":"ОпераційніВитрати[[#This Row],[ОРІЄНТОВНО]]-ОпераційніВитрати[[#This Row],[ФАКТИЧНО]]","v":{"v":0,"d":"0.00"}}]
[null,"Збір і передплати",{"v":500,"d":"500.00"},{"v":525,"d":"525.00"},{"$f":"ОпераційніВитрати[[#This Row],[ФАКТИЧНО]]+(10^-6)*ROW(ОпераційніВитрати[[#This Row],[ФАКТИЧНО]])","v":{"v":525.00001,"d":"525.00"}},{"$f":"ОпераційніВитрати[[#This Row],[ОРІЄНТОВНО]]-ОпераційніВитрати[[#This Row],[ФАКТИЧНО]]","v":{"v":-25,"d":"-25.00 "}}]
[null,"Страхування",{"v":1300,"d":"1,300.00"},{"v":1275,"d":"1,275.00"},{"$f":"ОпераційніВитрати[[#This Row],[ФАКТИЧНО]]+(10^-6)*ROW(ОпераційніВитрати[[#This Row],[ФАКТИЧНО]])","v":{"v":1275.000011,"d":"1,275.00"}},{"$f":"ОпераційніВитрати[[#This Row],[ОРІЄНТОВНО]]-ОпераційніВитрати[[#This Row],[ФАКТИЧНО]]","v":{"v":25,"d":"25.00"}}]
[null,"Відсоткова ставка",{"v":2000,"d":"2,000.00"},{"v":2200,"d":"2,200.00"},{"$f":"ОпераційніВитрати[[#This Row],[ФАКТИЧНО]]+(10^-6)*ROW(ОпераційніВитрати[[#This Row],[ФАКТИЧНО]])","v":{"v":2200.000012,"d":"2,200.00"}},{"$f":"ОпераційніВитрати[[#This Row],[ОРІЄНТОВНО]]-ОпераційніВитрати[[#This Row],[ФАКТИЧНО]]","v":{"v":-200,"d":"-200.00 "}}]
[null,"Юридичні послуги та аудит",{"v":1000,"d":"1,000.00"},{"v":800,"d":"800.00"},{"$f":"ОпераційніВитрати[[#This Row],[ФАКТИЧНО]]+(10^-6)*ROW(ОпераційніВитрати[[#This Row],[ФАКТИЧНО]])","v":{"v":800.000013,"d":"800.00"}},{"$f":"ОпераційніВитрати[[#This Row],[ОРІЄНТОВНО]]-ОпераційніВитрати[[#This Row],[ФАКТИЧНО]]","v":{"v":200,"d":"200.00"}}]
[null,"Обслуговування та ремонт",{"v":4500,"d":"4,500.00"},{"v":4600,"d":"4,600.00"},{"$f":"ОпераційніВитрати[[#This Row],[ФАКТИЧНО]]+(10^-6)*ROW(ОпераційніВитрати[[#This Row],[ФАКТИЧНО]])","v":{"v":4600.000014,"d":"4,600.00"}},{"$f":"ОпераційніВитрати[[#This Row],[ОРІЄНТОВНО]]-ОпераційніВитрати[[#This Row],[ФАКТИЧНО]]","v":{"v":-100,"d":"-100.00 "}}]
[null,"Матеріально-технічне забезпечення офісу",{"v":800,"d":"800.00"},{"v":750,"d":"750.00"},{"$f":"ОпераційніВитрати[[#This Row],[ФАКТИЧНО]]+(10^-6)*ROW(ОпераційніВитрати[[#This Row],[ФАКТИЧНО]])","v":{"v":750.000015,"d":"750.00"}},{"$f":"ОпераційніВитрати[[#This Row],[ОРІЄНТОВНО]]-ОпераційніВитрати[[#This Row],[ФАКТИЧНО]]","v":{"v":50,"d":"50.00"}}]
[null,"Поштові витрати",{"v":400,"d":"400.00"},{"v":350,"d":"350.00"},{"$f":"ОпераційніВитрати[[#This Row],[ФАКТИЧНО]]+(10^-6)*ROW(ОпераційніВитрати[[#This Row],[ФАКТИЧНО]])","v":{"v":350.000016,"d":"350.00"}},{"$f":"ОпераційніВитрати[[#This Row],[ОРІЄНТОВНО]]-ОпераційніВитрати[[#This Row],[ФАКТИЧНО]]","v":{"v":50,"d":"50.00"}}]
[null,"Оренда або іпотека",{"v":4100,"d":"4,100.00"},{"v":4500,"d":"4,500.00"},{"$f":"ОпераційніВитрати[[#This Row],[ФАКТИЧНО]]+(10^-6)*ROW(ОпераційніВитрати[[#This Row],[ФАКТИЧНО]])","v":{"v":4500.000017,"d":"4,500.00"}},{"$f":"ОпераційніВитрати[[#This Row],[ОРІЄНТОВНО]]-ОпераційніВитрати[[#This Row],[ФАКТИЧНО]]","v":{"v":-400,"d":"-400.00 "}}]
[null,"Витрати на збут",{"v":350,"d":"350.00"},{"v":400,"d":"400.00"},{"$f":"ОпераційніВитрати[[#This Row],[ФАКТИЧНО]]+(10^-6)*ROW(ОпераційніВитрати[[#This Row],[ФАКТИЧНО]])","v":{"v":400.000018,"d":"400.00"}},{"$f":"ОпераційніВитрати[[#This Row],[ОРІЄНТОВНО]]-ОпераційніВитрати[[#This Row],[ФАКТИЧНО]]","v":{"v":-50,"d":"-50.00 "}}]
[null,"Доставка та зберігання",{"v":900,"d":"900.00"},{"v":840,"d":"840.00"},{"$f":"ОпераційніВитрати[[#This Row],[ФАКТИЧНО]]+(10^-6)*ROW(ОпераційніВитрати[[#This Row],[ФАКТИЧНО]])","v":{"v":840.000019,"d":"840.00"}},{"$f":"ОпераційніВитрати[[#This Row],[ОРІЄНТОВНО]]-ОпераційніВитрати[[#This Row],[ФАКТИЧНО]]","v":{"v":60,"d":"60.00"}}]
[null,"Матеріали",{"v":5000,"d":"5,000.00"},{"v":4500,"d":"4,500.00"},{"$f":"ОпераційніВитрати[[#This Row],[ФАКТИЧНО]]+(10^-6)*ROW(ОпераційніВитрати[[#This Row],[ФАКТИЧНО]])","v":{"v":4500.00002,"d":"4,500.00"}},{"$f":"ОпераційніВитрати[[#This Row],[ОРІЄНТОВНО]]-ОпераційніВитрати[[#This Row],[ФАКТИЧНО]]","v":{"v":500,"d":"500.00"}}]
[null,"Податки",{"v":3000,"d":"3,000.00"},{"v":3200,"d":"3,200.00"},{"$f":"ОпераційніВитрати[[#This Row],[ФАКТИЧНО]]+(10^-6)*ROW(ОпераційніВитрати[[#This Row],[ФАКТИЧНО]])","v":{"v":3200.000021,"d":"3,200.00"}},{"$f":"ОпераційніВитрати[[#This Row],[ОРІЄНТОВНО]]-ОпераційніВитрати[[#This Row],[ФАКТИЧНО]]","v":{"v":-200,"d":"-200.00 "}}]
[null,"Телефон",{"v":250,"d":"250.00"},{"v":280,"d":"280.00"},{"$f":"ОпераційніВитрати[[#This Row],[ФАКТИЧНО]]+(10^-6)*ROW(ОпераційніВитрати[[#This Row],[ФАКТИЧНО]])","v":{"v":280.000022,"d":"280.00"}},{"$f":"ОпераційніВитрати[[#This Row],[ОРІЄНТОВНО]]-ОпераційніВитрати[[#This Row],[ФАКТИЧНО]]","v":{"v":-30,"d":"-30.00 "}}]
[null,"Комунальні послуги",{"v":1400,"d":"1,400.00"},{"v":1385,"d":"1,385.00"},{"$f":"ОпераційніВитрати[[#This Row],[ФАКТИЧНО]]+(10^-6)*ROW(ОпераційніВитрати[[#This Row],[ФАКТИЧНО]])","v":{"v":1385.000023,"d":"1,385.00"}},{"$f":"ОпераційніВитрати[[#This Row],[ОРІЄНТОВНО]]-ОпераційніВитрати[[#This Row],[ФАКТИЧНО]]","v":{"v":15,"d":"15.00"}}]
[null,"Інше",{"v":1000,"d":"1,000.00"},{"v":750,"d":"750.00"},{"$f":"ОпераційніВитрати[[#This Row],[ФАКТИЧНО]]+(10^-6)*ROW(ОпераційніВитрати[[#This Row],[ФАКТИЧНО]])","v":{"v":750.000024,"d":"750.00"}},{"$f":"ОпераційніВитрати[[#This Row],[ОРІЄНТОВНО]]-ОпераційніВитрати[[#This Row],[ФАКТИЧНО]]","v":{"v":250,"d":"250.00"}}]
[null,"Загальна сума операційних витрат",{"$f":"SUBTOTAL(109,ОпераційніВитрати[ОРІЄНТОВНО])","v":{"v":36000,"d":"36,000.00"}},{"$f":"SUBTOTAL(109,ОпераційніВитрати[ФАКТИЧНО])","v":{"v":35530,"d":"35,530.00"}},null,{"$f":"SUBTOTAL(109,ОпераційніВитрати[РІЗНИЦЯ])","v":{"v":470,"d":"470.00"}}]